[Event "DVM U10 2024"]
[Site "Duesseldorf"]
[Date "2024.12.27"]
[Round "2"]
[White "Michelson, Nathan"]
[Black "Klaus, Simon"]
[Result "0-1"]
[ECO "B01"]
[WhiteElo "1198"]
[BlackElo "1197"]
[Annotator "NA RC"]
[PlyCount "86"]
[EventDate "2024.12.23"]
[EventType "team-tourn"]
[EventRounds "7"]
[EventCountry "GER"]
[SourceTitle "playchess.com"]
[Source "ChessBase"]
[SourceQuality "1"]
[TimeControl "3300+5"]

1. e4 {[%emt 0:00:45]} d5 {[%emt 0:00:06]} 2. exd5 {[%emt 0:00:00]} Qxd5 {[%emt 0:00:13]} 3. Nc3 {[%emt 0:00:15]} Qa5 {[%emt 0:00:15]} 4. d4 {[%emt 0:00:00]} Nf6 {[%emt 0:00:24]} 5. Bd2 {[%emt 0:00:11]} c6 {[%emt 0:00:25]} 6. Bc4 {[%emt 0:02:05]} Bf5 7. Nf3 {[%emt 0:01:39]} Nbd7 {[%emt 0:00:17]} 8. h3 {[%emt 0:00:00]} e6 {[%emt 0:00:16]} 9. O-O {[%emt 0:00:00]} Bd6 {[%emt 0:00:15]} 10. Nb5 {[%emt 0:00:00]} Bb4 {[%emt 0:00:45]} 11. Bxb4 {[%emt 0:00:00]} Qxb4 {[%emt 0:00:26]} 12. Nc7+ {[%emt 0:01:08]} Kd8 {[%emt 0:00:57]} 13. Nxa8 {[%emt 0:00:00]} Qxc4 {[%emt 0:00:15]} 14. Ne5 {[%emt 0:00:00]} Nxe5 {[%emt 0:00:45]} 15. dxe5+ {[%emt 0:00:00]} Nd5 {[%emt 0:00:45]} 16. b3 {[%emt 0:00:00]} Qxc2 {[%emt 0:00:45]} 17. Qxc2 {[%emt 0:00:00]} Bxc2 {[%emt 0:02:25]} 18. Rac1 {[%emt 0:00:37]} Bg6 {[%emt 0:01:10]} 19. a3 {[%emt 0:00:26]} Ke7 {[%emt 0:00:15]} 20. f4 {[%emt 0:00:53]} h5 {[%emt 0:01:08]} 21. g4 {[%emt 0:00:28]} hxg4 {[%emt 0:00:34]} 22. hxg4 {[%emt 0:00:47]} Rxa8 {[%emt 0:01:00]} 23. b4 Rh8 {[%emt 0:00:41]} 24. b5 {[%emt 0:00:40]} cxb5 {[%emt 0:00:13]} 25. Rfd1 {[%emt 0:01:12]} Rh4 26. f5 {[%emt 0:00:50]} Rxg4+ {[%emt 0:00:41]} 27. Kf2 {[%emt 0:00:00]} Bxf5 {[%emt 0:01:14]} 28. Kf3 Rg5 {[%emt 0:00:31]} 29. Rd2 {[%emt 0:01:30]} Rh5 30. Rc5 {[%emt 0:01:17]} Rh3+ {[%emt 0:02:12]} 31. Kg2 {[%emt 0:01:25]} a6 {[%emt 0:00:05]} 32. Rd4 {[%emt 0:02:20]} Rxa3 {[%emt 0:02:35]} 33. Kf2 {[%emt 0:00:00]} b4 {[%emt 0:01:11]} 34. Rdxd5 {[%emt 0:02:43]} exd5 {[%emt 0:00:39]} 35. Rc7+ {[%emt 0:00:00]} Ke6 {[%emt 0:00:54]} 36. Rxb7 {[%emt 0:00:00]} b3 {[%emt 0:00:39]} 37. Ke1 {[%emt 0:00:00]} Ra1+ {[%emt 0:01:12]} 38. Ke2 {[%emt 0:00:00]} Ra2+ {[%emt 0:00:13]} 39. Kd1 {[%emt 0:00:00]} b2 {[%emt 0:00:14]} 40. Rb6+ {[%emt 0:00:00]} Kxe5 {[%emt 0:00:10]} 41. Rxb2 {[%emt 0:00:07]} Rxb2 {[%emt 0:00:25]} 42. Kc1 {[%emt 0:00:00]} Rh2 {[%emt 0:00:24]} 43. Kd1 {[%emt 0:00:45]} a5 0-1

[Event "DVM U10 2024"]
[Site "Duesseldorf"]
[Date "2024.12.27"]
[Round "2"]
[White "Shandi, Hasan"]
[Black "Mettenbrink, Tammo"]
[Result "0-1"]
[ECO "C45"]
[WhiteElo "1153"]
[BlackElo "1029"]
[Annotator "NA RC"]
[PlyCount "74"]
[EventDate "2024.12.23"]
[EventType "team-tourn"]
[EventRounds "7"]
[EventCountry "GER"]
[SourceTitle "playchess.com"]
[Source "ChessBase"]
[SourceQuality "1"]
[TimeControl "3300+5"]

1. e4 {[%emt 0:00:01]} e5 {[%emt 0:00:08]} 2. Nf3 {[%emt 0:00:19]} Nc6 {[%emt 0:00:16]} 3. d4 {[%emt 0:00:05]} exd4 {[%emt 0:00:09]} 4. Nxd4 {[%emt 0:00:03]} Nxd4 {[%emt 0:00:14]} 5. Qxd4 {[%emt 0:00:06]} Nf6 {[%emt 0:00:07]} 6. Nc3 {[%emt 0:00:14]} Be7 {[%emt 0:00:20]} 7. Bg5 {[%emt 0:00:11]} O-O {[%emt 0:01:04]} 8. O-O-O {[%emt 0:00:18]} d6 {[%emt 0:01:06]} 9. f4 {[%emt 0:00:46]} Bd7 {[%emt 0:01:09]} 10. Bc4 {[%emt 0:00:42]} c5 {[%emt 0:01:36]} 11. Qd3 {[%emt 0:00:24]} Ne8 {[%emt 0:01:00]} 12. Bxe7 {[%emt 0:00:23]} Qxe7 {[%emt 0:00:13]} 13. Qxd6 {[%emt 0:00:11]} Nxd6 {[%emt 0:00:11]} 14. Rhe1 {[%emt 0:00:57]} Nxc4 {[%emt 0:00:29]} 15. Nd5 {[%emt 0:00:17]} Qh4 {[%emt 0:00:28]} 16. Nc7 {[%emt 0:00:05]} Qxf4+ {[%emt 0:00:12]} 17. Kb1 {[%emt 0:00:56]} Qxc7 {[%emt 0:00:13]} 18. Rd5 {[%emt 0:00:53]} Qb6 {[%emt 0:00:23]} 19. b3 {[%emt 0:00:15]} Na3+ {[%emt 0:00:17]} 20. Kb2 {[%emt 0:00:20]} Nc4+ {[%emt 0:00:30]} 21. Kb1 {[%emt 0:00:07]} Ba4 {[%emt 0:00:19]} 22. Kc1 {[%emt 0:00:16]} Qh6+ {[%emt 0:00:39]} 23. Kb1 {[%emt 0:00:30]} Nd2+ {[%emt 0:00:15]} 24. Kb2 {[%emt 0:00:15]} Bc6 {[%emt 0:00:20]} 25. Rxc5 {[%emt 0:00:31]} Bxe4 {[%emt 0:00:20]} 26. Re2 {[%emt 0:01:01]} Rac8 {[%emt 0:00:18]} 27. Rxc8 {[%emt 0:00:54]} Rxc8 {[%emt 0:00:08]} 28. c3 {[%emt 0:00:28]} Rd8 {[%emt 0:00:46]} 29. h3 {[%emt 0:00:24]} Qd6 {[%emt 0:01:07]} 30. a3 {[%emt 0:00:22]} Qb6 {[%emt 0:00:16]} 31. b4 {[%emt 0:00:10]} Nc4+ {[%emt 0:00:23]} 32. Kb3 {[%emt 0:00:17]} Qc6 {[%emt 0:00:24]} 33. g4 {[%emt 0:00:28]} Rd2 {[%emt 0:00:11]} 34. Rxd2 {[%emt 0:00:42]} Nxd2+ {[%emt 0:00:15]} 35. Kb2 {[%emt 0:00:31]} Qa4 {[%emt 0:00:20]} 36. c4 {[%emt 0:00:20]} Qb3+ {[%emt 0:00:12]} 37. Kc1 {[%emt 0:00:14]} Qc2# {[%emt 0:00:36]} 0-1

[Event "DVM U10 2024"]
[Site "Duesseldorf"]
[Date "2024.12.27"]
[Round "2"]
[White "Torgoev, Timur"]
[Black "Benischke, Moritz"]
[Result "0-1"]
[ECO "C58"]
[WhiteElo "1153"]
[BlackElo "1421"]
[Annotator "NA RC"]
[PlyCount "74"]
[EventDate "2024.12.23"]
[EventType "team-tourn"]
[EventRounds "7"]
[EventCountry "GER"]
[SourceTitle "playchess.com"]
[Source "ChessBase"]
[SourceQuality "1"]
[TimeControl "3300+5"]

1. e4 {[%emt 0:00:02]} e5 {[%emt 0:00:12]} 2. Nf3 {[%emt 0:00:05]} Nc6 {[%emt 0:00:14]} 3. Bc4 {[%emt 0:00:36]} Nf6 {[%emt 0:00:09]} 4. Ng5 {[%emt 0:00:09]} d5 {[%emt 0:00:10]} 5. exd5 {[%emt 0:00:06]} Na5 {[%emt 0:00:23]} 6. Bb5+ {[%emt 0:00:36]} c6 {[%emt 0:00:06]} 7. dxc6 {[%emt 0:00:06]} bxc6 {[%emt 0:00:06]} 8. Bd3 {[%emt 0:00:19]} Bc5 {[%emt 0:00:29]} 9. Nc3 {[%emt 0:02:21]} Qd4 {[%emt 0:01:48]} 10. O-O {[%emt 0:00:31]} Qd6 {[%emt 0:00:15]} 11. Be4 {[%emt 0:00:43]} h6 {[%emt 0:01:50]} 12. Nf3 {[%emt 0:01:18]} Qe6 {[%emt 0:02:13]} 13. Re1 {[%emt 0:01:01]} Ba6 {[%emt 0:01:58]} 14. d4 {[%emt 0:00:35]} Bb6 {[%emt 0:01:38]} 15. dxe5 {[%emt 0:00:50]} Ng4 {[%emt 0:00:21]} 16. Nd4 {[%emt 0:01:05]} Qc8 {[%emt 0:01:37]} 17. Bf3 {[%emt 0:01:21]} h5 {[%emt 0:01:55]} 18. h3 {[%emt 0:01:16]} Nh6 {[%emt 0:03:43]} 19. Bxh5 {[%emt 0:00:29]} c5 {[%emt 0:01:08]} 20. Nb3 {[%emt 0:00:36]} Nf5 {[%emt 0:02:07]} 21. Bf3 {[%emt 0:00:45]} Rb8 {[%emt 0:01:07]} 22. Nd5 {[%emt 0:02:52]} Bd8 {[%emt 0:02:49]} 23. Bd2 {[%emt 0:00:43]} Nh4 {[%emt 0:01:10]} 24. Bxa5 {[%emt 0:00:34]} Nxf3+ {[%emt 0:00:39]} 25. Qxf3 {[%emt 0:00:16]} Rxb3 {[%emt 0:00:49]} 26. Qxb3 {[%emt 0:00:33]} Bxa5 {[%emt 0:00:18]} 27. Qa4+ {[%emt 0:00:29]} Kf8 {[%emt 0:01:06]} 28. Qxa5 {[%emt 0:00:21]} Bb7 {[%emt 0:01:08]} 29. Rad1 {[%emt 0:01:06]} g6 {[%emt 0:00:42]} 30. b4 {[%emt 0:00:24]} Qe6 {[%emt 0:04:08]} 31. Qxc5+ {[%emt 0:00:22]} Kg7 {[%emt 0:00:53]} 32. c4 {[%emt 0:01:10]} Rh5 {[%emt 0:00:17]} 33. Qxa7 {[%emt 0:01:50]} Bc6 {[%emt 0:01:11]} 34. Nf6 {[%emt 0:00:45]} Bxg2 {[%emt 0:01:02]} 35. Kxg2 {[%emt 0:00:15]} Qxh3+ {[%emt 0:01:24]} 36. Kg1 {[%emt 0:00:33]} Rg5+ {[%emt 0:00:00]} 37. Ng4 {[%emt 0:00:50]} Rxg4# {[%emt 0:00:00]} 0-1

[Event "DVM U10 2024"]
[Site "Duesseldorf"]
[Date "2024.12.27"]
[Round "2"]
[White "Leppin, Mattis"]
[Black "Bentele, Otto"]
[Result "1-0"]
[ECO "D55"]
[WhiteElo "1138"]
[BlackElo "1522"]
[Annotator "NA RC"]
[PlyCount "118"]
[EventDate "2024.12.23"]
[EventType "team-tourn"]
[EventRounds "7"]
[EventCountry "GER"]
[SourceTitle "playchess.com"]
[Source "ChessBase"]
[SourceQuality "1"]
[TimeControl "3300+5"]

1. d4 {[%emt 0:00:02]} d5 {[%emt 0:00:01]} 2. c4 {[%emt 0:00:08]} e6 {[%emt 0:00:25]} 3. Nc3 {[%emt 0:00:06]} c6 {[%emt 0:00:10]} 4. Nf3 {[%emt 0:00:08]} Nf6 {[%emt 0:00:09]} 5. Bg5 {[%emt 0:00:13]} Be7 {[%emt 0:00:15]} 6. e3 {[%emt 0:00:11]} h6 {[%emt 0:00:09]} 7. Bxf6 {[%emt 0:00:10]} Bxf6 {[%emt 0:00:08]} 8. Bd3 {[%emt 0:00:08]} O-O {[%emt 0:00:40]} 9. O-O {[%emt 0:00:07]} Re8 {[%emt 0:00:18]} 10. cxd5 {[%emt 0:00:34]} cxd5 {[%emt 0:00:28]} 11. Re1 {[%emt 0:00:13]} Qb6 {[%emt 0:00:19]} 12. Qc2 {[%emt 0:00:19]} Nc6 {[%emt 0:00:13]} 13. a3 {[%emt 0:00:05]} Qd8 {[%emt 0:02:20]} 14. Rad1 {[%emt 0:00:51]} b6 {[%emt 0:01:37]} 15. Bb5 {[%emt 0:00:22]} Bd7 {[%emt 0:00:14]} 16. e4 {[%emt 0:01:05]} dxe4 {[%emt 0:00:25]} 17. Nxe4 {[%emt 0:00:16]} Rc8 {[%emt 0:00:32]} 18. Nd6 {[%emt 0:00:20]} Nxd4 {[%emt 0:00:15]} 19. Qd3 {[%emt 0:02:36]} Nxb5 {[%emt 0:00:39]} 20. Nxc8 Qxc8 {[%emt 0:00:50]} 21. Qxd7 Qxd7 {[%emt 0:00:49]} 22. Rxd7 {[%emt 0:02:06]} Rc8 {[%emt 0:00:48]} 23. a4 {[%emt 0:01:07]} Rc7 {[%emt 0:03:11]} 24. Red1 {[%emt 0:00:53]} Rc5 {[%emt 0:01:38]} 25. axb5 {[%emt 0:00:07]} Rxb5 {[%emt 0:00:06]} 26. Rxa7 {[%emt 0:00:24]} Rxb2 {[%emt 0:00:13]} 27. Rb7 {[%emt 0:00:44]} b5 {[%emt 0:00:11]} 28. g3 {[%emt 0:01:18]} b4 {[%emt 0:00:22]} 29. Rd3 {[%emt 0:00:08]} Rb1+ {[%emt 0:00:09]} 30. Kg2 {[%emt 0:00:11]} e5 {[%emt 0:00:17]} 31. Nd2 {[%emt 0:00:19]} Rb2 {[%emt 0:00:12]} 32. Ne4 {[%emt 0:01:01]} b3 {[%emt 0:00:52]} 33. Nxf6+ {[%emt 0:00:10]} gxf6 {[%emt 0:00:19]} 34. Rbxb3 {[%emt 0:00:15]} Rxb3 {[%emt 0:00:15]} 35. Rxb3 {[%emt 0:00:05]} Kg7 {[%emt 0:00:04]} 36. Kf3 {[%emt 0:00:17]} Kg6 {[%emt 0:00:02]} 37. g4 {[%emt 0:00:13]} f5 {[%emt 0:00:09]} 38. gxf5+ {[%emt 0:00:10]} Kxf5 {[%emt 0:00:15]} 39. Rb7 {[%emt 0:00:26]} f6 {[%emt 0:00:09]} 40. Rh7 {[%emt 0:00:05]} Kg6 {[%emt 0:00:11]} 41. Re7 {[%emt 0:00:17]} h5 {[%emt 0:00:15]} 42. h4 {[%emt 0:00:17]} Kf5 {[%emt 0:00:09]} 43. Kg3 {[%emt 0:00:20]} Kg6 {[%emt 0:00:09]} 44. f4 {[%emt 0:00:11]} exf4+ {[%emt 0:00:13]} 45. Kxf4 {[%emt 0:00:08]} Kh6 {[%emt 0:00:20]} 46. Ke4 {[%emt 0:00:39]} f5+ {[%emt 0:00:21]} 47. Kf4 {[%emt 0:00:18]} Kg6 {[%emt 0:00:06]} 48. Re6+ {[%emt 0:00:10]} Kg7 {[%emt 0:00:26]} 49. Kxf5 {[%emt 0:00:07]} Kf7 {[%emt 0:00:08]} 50. Rf6+ {[%emt 0:00:11]} Ke7 {[%emt 0:00:15]} 51. Ke5 {[%emt 0:00:06]} Kd7 {[%emt 0:00:18]} 52. Re6 {[%emt 0:00:08]} Kc7 {[%emt 0:00:07]} 53. Rd6 {[%emt 0:00:09]} Kc8 {[%emt 0:00:15]} 54. Kd5 {[%emt 0:00:09]} Kc7 {[%emt 0:00:11]} 55. Kc5 {[%emt 0:00:06]} Kb7 {[%emt 0:00:22]} 56. Rc6 {[%emt 0:00:08]} Ka7 {[%emt 0:00:18]} 57. Rb6 {[%emt 0:00:09]} Ka8 {[%emt 0:00:10]} 58. Kc6 {[%emt 0:00:08]} Ka7 {[%emt 0:00:09]} 59. Kc7 {[%emt 0:00:07]} Ka8 {[%emt 0:00:07]} 1-0

[Event "DVM U10 2024"]
[Site "Duesseldorf"]
[Date "2024.12.27"]
[Round "2"]
[White "Guan, Guoyou"]
[Black "Bashirova, Sona"]
[Result "0-1"]
[ECO "B22"]
[WhiteElo "1128"]
[BlackElo "1626"]
[Annotator "NA RC"]
[PlyCount "62"]
[EventDate "2024.12.23"]
[EventType "team-tourn"]
[EventRounds "7"]
[EventCountry "GER"]
[SourceTitle "playchess.com"]
[Source "ChessBase"]
[SourceQuality "1"]
[TimeControl "3300+5"]

1. e4 {[%emt 0:00:02]} c5 {[%emt 0:00:01]} 2. Nf3 {[%emt 0:00:10]} d6 {[%emt 0:00:05]} 3. c3 {[%emt 0:00:07]} Nc6 {[%emt 0:01:40]} 4. d4 {[%emt 0:00:12]} cxd4 {[%emt 0:03:23]} 5. cxd4 {[%emt 0:01:54]} a6 {[%emt 0:04:30]} 6. Nc3 {[%emt 0:00:17]} g6 {[%emt 0:02:54]} 7. Bc4 {[%emt 0:00:23]} Bg7 {[%emt 0:01:02]} 8. O-O {[%emt 0:00:37]} e6 {[%emt 0:02:59]} 9. Bf4 {[%emt 0:01:09]} Nge7 {[%emt 0:03:08]} 10. Re1 {[%emt 0:00:29]} O-O {[%emt 0:00:29]} 11. h3 {[%emt 0:01:19]} d5 {[%emt 0:03:15]} 12. Bb3 {[%emt 0:00:58]} dxe4 {[%emt 0:03:00]} 13. Rxe4 {[%emt 0:00:31]} Nf5 {[%emt 0:00:31]} 14. Ne2 {[%emt 0:00:25]} b5 {[%emt 0:03:18]} 15. Rc1 {[%emt 0:00:49]} Bb7 {[%emt 0:00:10]} 16. d5 {[%emt 0:04:03]} exd5 {[%emt 0:00:59]} 17. Bxd5 {[%emt 0:00:47]} Qb6 {[%emt 0:03:59]} 18. b3 {[%emt 0:00:28]} Rad8 {[%emt 0:01:20]} 19. b4 {[%emt 0:02:17]} Qa7 {[%emt 0:10:56]} 20. Qb3 Rxd5 {[%emt 0:02:36]} 21. Qxd5 {[%emt 0:01:19]} Nxb4 {[%emt 0:00:00]} 22. Qb3 {[%emt 0:00:36]} Bxe4 {[%emt 0:00:00]} 23. Qxb4 {[%emt 0:01:15]} Bxf3 {[%emt 0:00:01]} 24. gxf3 {[%emt 0:00:16]} Qb7 {[%emt 0:00:53]} 25. Qe4 Qd7 {[%emt 0:00:30]} 26. Rc7 {[%emt 0:00:53]} Qd1+ {[%emt 0:00:06]} 27. Kg2 {[%emt 0:00:08]} Nh4+ {[%emt 0:02:09]} 28. Kg3 {[%emt 0:00:44]} Bf6 {[%emt 0:00:13]} 29. Bh6 {[%emt 0:00:25]} Qh1 {[%emt 0:00:25]} 30. Bxf8 {[%emt 0:01:05]} Qg2+ {[%emt 0:00:04]} 31. Kf4 {[%emt 0:00:10]} Qg5# {[%emt 0:00:02]} 0-1

[Event "DVM U10 2024"]
[Site "Duesseldorf"]
[Date "2024.12.27"]
[Round "2"]
[White "Mayer, Frederik Eliot"]
[Black "von der Thüsen, Gottfried"]
[Result "1/2-1/2"]
[ECO "B07"]
[WhiteElo "1128"]
[BlackElo "1041"]
[Annotator "NA"]
[PlyCount "104"]
[EventDate "2024.12.23"]
[EventType "team-tourn"]
[EventRounds "7"]
[EventCountry "GER"]
[SourceTitle "playchess.com"]
[Source "ChessBase"]
[SourceQuality "1"]
[TimeControl "3300+5"]

1. e4 {[%emt 0:00:02]} d6 {[%emt 0:00:20]} 2. Nf3 {[%emt 0:00:22]} Bg4 {[%emt 0:00:52]} 3. Nc3 {[%emt 0:00:23]} Bxf3 {[%emt 0:01:17]} 4. Qxf3 {[%emt 0:00:10]} e5 {[%emt 0:00:41]} 5. Bc4 {[%emt 0:00:26]} Nf6 {[%emt 0:00:22]} 6. d3 {[%emt 0:01:35]} h6 {[%emt 0:00:56]} 7. Nd5 {[%emt 0:01:03]} Nbd7 {[%emt 0:01:27]} 8. Be3 {[%emt 0:00:11]} Nxd5 {[%emt 0:00:40]} 9. Bxd5 {[%emt 0:00:19]} Nf6 {[%emt 0:00:15]} 10. Bxb7 {[%emt 0:00:06]} Rb8 {[%emt 0:00:24]} 11. Bc6+ {[%emt 0:01:14]} Nd7 {[%emt 0:00:25]} 12. b3 {[%emt 0:00:13]} Qf6 {[%emt 0:01:10]} 13. Qg4 {[%emt 0:00:22]} Rd8 {[%emt 0:00:40]} 14. Bxa7 {[%emt 0:01:27]} d5 {[%emt 0:01:03]} 15. Bb8 {[%emt 0:01:10]} Bd6 {[%emt 0:01:21]} 16. Ba7 {[%emt 0:00:59]} d4 {[%emt 0:00:31]} 17. a4 {[%emt 0:00:15]} Bb4+ {[%emt 0:00:42]} 18. Ke2 {[%emt 0:01:06]} Qxc6 {[%emt 0:00:28]} 19. f4 {[%emt 0:02:00]} Qxc2+ {[%emt 0:01:01]} 20. Kf3 {[%emt 0:01:15]} Qxd3+ {[%emt 0:00:26]} 21. Kf2 {[%emt 0:00:40]} Qc2+ {[%emt 0:00:41]} 22. Qe2 {[%emt 0:00:53]} Qxe2+ {[%emt 0:00:21]} 23. Kxe2 {[%emt 0:00:10]} Ra8 {[%emt 0:00:40]} 24. Bxd4 {[%emt 0:00:23]} exd4 {[%emt 0:00:17]} 25. Rhc1 {[%emt 0:00:16]} Bc3 {[%emt 0:00:45]} 26. Ra2 {[%emt 0:00:21]} Nc5 {[%emt 0:00:49]} 27. Rb1 {[%emt 0:00:37]} d3+ {[%emt 0:00:38]} 28. Ke3 {[%emt 0:00:22]} d2 {[%emt 0:00:44]} 29. Rc2 {[%emt 0:00:28]} Rd8 {[%emt 0:01:00]} 30. Rd1 {[%emt 0:00:27]} Bd4+ {[%emt 0:01:31]} 31. Kf3 {[%emt 0:00:25]} Nxb3 {[%emt 0:00:40]} 32. Rxc7 {[%emt 0:00:49]} O-O {[%emt 0:02:00]} 33. Rb7 {[%emt 0:01:37]} Rc8 {[%emt 0:00:31]} 34. Rxb3 {[%emt 0:00:50]} Rc1 {[%emt 0:00:23]} 35. Rb1 {[%emt 0:00:56]} Rfc8 {[%emt 0:00:29]} 36. Ke2 {[%emt 0:00:17]} Rxb1 {[%emt 0:00:38]} 37. Rxb1 {[%emt 0:00:29]} Rc1 {[%emt 0:00:15]} 38. Rb8+ {[%emt 0:00:50]} Kh7 {[%emt 0:00:16]} 39. Kxd2 {[%emt 0:00:54]} Rc4 {[%emt 0:00:31]} 40. Rb7 {[%emt 0:00:37]} Rxa4 {[%emt 0:00:35]} 41. Rxf7 {[%emt 0:00:42]} Ra2+ {[%emt 0:01:02]} 42. Kd3 {[%emt 0:00:16]} Bg1 {[%emt 0:00:29]} 43. e5 {[%emt 0:00:27]} Bxh2 {[%emt 0:00:25]} 44. e6 {[%emt 0:00:12]} Bxf4 {[%emt 0:00:58]} 45. e7 {[%emt 0:00:35]} Ra8 {[%emt 0:00:57]} 46. Rf8 {[%emt 0:00:58]} Bd6 {[%emt 0:00:21]} 47. e8=Q {[%emt 0:00:49]} Rxe8 {[%emt 0:00:16]} 48. Rxe8 {[%emt 0:00:15]} Bf4 {[%emt 0:02:02]} 49. Re4 {[%emt 0:00:28]} Bg5 {[%emt 0:00:26]} 50. Ke2 {[%emt 0:00:12]} Kg6 {[%emt 0:00:23]} 51. Rg4 {[%emt 0:00:50]} h5 {[%emt 0:00:32]} 52. Rg3 {[%emt 0:00:23]} Kh7 {[%emt 0:00:36]} 1/2-1/2

[Event "DVM U10 2024"]
[Site "Duesseldorf"]
[Date "2024.12.27"]
[Round "2"]
[White "Breaz, Arthur"]
[Black "Chen, Aimée"]
[Result "1/2-1/2"]
[ECO "C50"]
[WhiteElo "1123"]
[BlackElo "1090"]
[Annotator "NA RC"]
[PlyCount "111"]
[EventDate "2024.12.23"]
[EventType "team-tourn"]
[EventRounds "7"]
[EventCountry "GER"]
[SourceTitle "playchess.com"]
[Source "ChessBase"]
[SourceQuality "1"]
[TimeControl "3300+5"]

1. e4 {[%emt 0:00:05]} e5 {[%emt 0:00:06]} 2. Nf3 {[%emt 0:00:05]} Nc6 {[%emt 0:00:07]} 3. Bc4 {[%emt 0:00:11]} Bc5 {[%emt 0:00:10]} 4. d3 {[%emt 0:00:12]} h6 {[%emt 0:00:14]} 5. Nc3 {[%emt 0:00:10]} Nf6 {[%emt 0:00:09]} 6. O-O {[%emt 0:00:45]} O-O {[%emt 0:00:13]} 7. Bb3 {[%emt 0:00:37]} d6 {[%emt 0:00:20]} 8. Be3 {[%emt 0:00:16]} Bb6 {[%emt 0:00:14]} 9. Qd2 {[%emt 0:00:49]} Na5 {[%emt 0:00:22]} 10. Bxh6 {[%emt 0:00:20]} gxh6 {[%emt 0:03:00]} 11. Qxh6 {[%emt 0:00:52]} Nh7 {[%emt 0:00:56]} 12. Qg6+ {[%emt 0:01:12]} Kh8 {[%emt 0:00:19]} 13. Qh6 {[%emt 0:00:36]} Nxb3 {[%emt 0:00:22]} 14. axb3 {[%emt 0:00:47]} Qf6 {[%emt 0:00:31]} 15. Qh5 {[%emt 0:00:51]} Qg6 {[%emt 0:00:28]} 16. Qh4 {[%emt 0:00:16]} Rg8 {[%emt 0:01:41]} 17. g3 {[%emt 0:00:39]} Qg4 {[%emt 0:01:16]} 18. Qxg4 {[%emt 0:09:10]} Bxg4 {[%emt 0:00:08]} 19. Nd2 {[%emt 0:00:56]} c6 {[%emt 0:00:59]} 20. Kh1 {[%emt 0:01:17]} Bh3 {[%emt 0:00:24]} 21. Rfe1 {[%emt 0:01:05]} Raf8 {[%emt 0:00:17]} 22. Re2 {[%emt 0:01:08]} f5 {[%emt 0:00:14]} 23. Rae1 {[%emt 0:00:39]} fxe4 {[%emt 0:00:33]} 24. Ncxe4 {[%emt 0:02:07]} d5 {[%emt 0:00:28]} 25. Nc3 {[%emt 0:00:13]} Rxf2 {[%emt 0:02:24]} 26. Rxf2 {[%emt 0:00:11]} Bxf2 {[%emt 0:00:12]} 27. Rxe5 {[%emt 0:00:24]} Rf8 {[%emt 0:00:59]} 28. Rh5 {[%emt 0:01:10]} Bg4 {[%emt 0:00:54]} 29. Rh4 {[%emt 0:00:30]} Bf3+ {[%emt 0:00:33]} 30. Nxf3 {[%emt 0:00:36]} Rxf3 {[%emt 0:00:07]} 31. Rf4 {[%emt 0:00:08]} Rxf4 {[%emt 0:00:34]} 32. gxf4 {[%emt 0:00:18]} Kg7 {[%emt 0:00:13]} 33. Kg2 {[%emt 0:00:35]} Bd4 {[%emt 0:00:40]} 34. Kg3 {[%emt 0:00:31]} b5 {[%emt 0:00:36]} 35. Kg4 {[%emt 0:00:28]} Bg1 {[%emt 0:00:33]} 36. h4 {[%emt 0:00:40]} Nf6+ {[%emt 0:00:17]} 37. Kg5 {[%emt 0:00:17]} Be3 {[%emt 0:00:21]} 38. Nd1 {[%emt 0:00:32]} Bd2 {[%emt 0:00:23]} 39. Kf5 {[%emt 0:01:10]} a5 {[%emt 0:00:19]} 40. Kg5 {[%emt 0:01:01]} a4 {[%emt 0:00:19]} 41. bxa4 {[%emt 0:00:08]} bxa4 {[%emt 0:00:07]} 42. h5 {[%emt 0:01:46]} Nxh5 {[%emt 0:00:09]} 43. Kxh5 {[%emt 0:00:14]} Bxf4 {[%emt 0:00:07]} 44. b3 {[%emt 0:00:08]} a3 {[%emt 0:00:20]} 45. Nc3 {[%emt 0:00:11]} Bd2 {[%emt 0:00:09]} 46. Na2 {[%emt 0:00:07]} Kf6 {[%emt 0:00:08]} 47. Kg4 {[%emt 0:00:48]} Ke5 {[%emt 0:00:14]} 48. Kf3 {[%emt 0:00:58]} Kd4 {[%emt 0:00:21]} 49. Ke2 {[%emt 0:00:05]} Bc3 {[%emt 0:00:20]} 50. Kf3 {[%emt 0:00:37]} c5 {[%emt 0:01:16]} 51. Ke2 {[%emt 0:00:30]} c4 {[%emt 0:00:18]} 52. dxc4 {[%emt 0:00:15]} dxc4 {[%emt 0:00:16]} 53. bxc4 {[%emt 0:00:13]} Kxc4 {[%emt 0:00:10]} 54. Ke3 {[%emt 0:00:40]} Bd4+ {[%emt 0:01:45]} 55. Kd2 {[%emt 0:00:51]} Bb2 {[%emt 0:00:21]} 56. Kd1 {[%emt 0:00:55]} 1/2-1/2